[Event "Titled Tuesday Blitz May 23 Late 2023"]
[White "Melian, Juan Sebastian"]
[Black "Gokerkan, Cem Kaan"]
[WhiteFideId "3706575"]
[BlackFideId "6336760"]
[WhiteElo "2092"]
[BlackElo "2365"]
[Result "1-0"]
[Round "03"]
[TimeControl "180+2"]
[Date "2023.05.23"]
[WhiteClock "0:00:06"]
[BlackClock "0:00:00"]

1. d4 {[%clk 0:03:00]}  Nf6 {[%clk 0:03:00]} 2. c4 {[%clk 0:03:00]}  e6 {[%clk 0:03:00]} 3. Nc3 {[%clk 0:03:00]}  d5 {[%clk 0:03:00]} 4. cxd5 {[%clk 0:02:46]}  exd5 {[%clk 0:03:01]} 5. Bg5 {[%clk 0:02:46]}  Be7 {[%clk 0:03:01]} 6. e3 {[%clk 0:02:46]}  h6 {[%clk 0:03:02]} 7. Bh4 {[%clk 0:02:46]}  Bg4 {[%clk 0:03:02]} 8. Qc2 {[%clk 0:02:44]}  O-O {[%clk 0:02:55]} 9. Bd3 {[%clk 0:02:34]}  c5 {[%clk 0:02:52]} 10. Nge2 {[%clk 0:02:26]}  Nc6 {[%clk 0:02:45]} 11. a3 {[%clk 0:02:21]}  Bxe2 {[%clk 0:02:26]} 12. Nxe2 {[%clk 0:02:17]}  Qa5+ {[%clk 0:02:26]} 13. Qd2 {[%clk 0:02:06]}  Qxd2+ {[%clk 0:02:20]} 14. Kxd2 {[%clk 0:02:07]}  c4 {[%clk 0:02:01]} 15. Bc2 {[%clk 0:02:06]}  b5 {[%clk 0:01:59]} 16. Nc3 {[%clk 0:01:52]}  Rfd8 {[%clk 0:01:18]} 17. Bxf6 {[%clk 0:01:37]}  Bxf6 {[%clk 0:01:19]} 18. Nxb5 {[%clk 0:01:38]}  Rab8 {[%clk 0:01:20]} 19. Nc3 {[%clk 0:01:38]}  Rxb2 {[%clk 0:01:18]} 20. Rhb1 {[%clk 0:01:39]}  Rxb1 {[%clk 0:00:49]} 21. Rxb1 {[%clk 0:01:39]}  Be7 {[%clk 0:00:41]} 22. Ba4 {[%clk 0:01:31]}  Nb8 {[%clk 0:00:22]} 23. Nxd5 {[%clk 0:00:40]}  Bxa3 {[%clk 0:00:21]} 24. Nc3 {[%clk 0:00:34]}  a5 {[%clk 0:00:18]} 25. Rb7 {[%clk 0:00:26]}  Bb4 {[%clk 0:00:17]} 26. Kc2 {[%clk 0:00:26]}  Na6 {[%clk 0:00:10]} 27. Bb5 {[%clk 0:00:20]}  Nb8 {[%clk 0:00:09]} 28. Bxc4 {[%clk 0:00:08]}  Nd7 {[%clk 0:00:09]} 29. Nd5 {[%clk 0:00:04]}  Be1 {[%clk 0:00:08]} 30. Kd3 {[%clk 0:00:04]}  Bxf2 {[%clk 0:00:07]} 31. Ra7 {[%clk 0:00:05]}  Be1 {[%clk 0:00:06]} 32. Ke2 {[%clk 0:00:05]}  Bb4 {[%clk 0:00:06]} 33. Nxb4 {[%clk 0:00:04]}  axb4 {[%clk 0:00:07]} 34. Rb7 {[%clk 0:00:05]}  Nf6 {[%clk 0:00:06]} 35. Bxf7+ {[%clk 0:00:05]}  Kf8 {[%clk 0:00:06]} 36. Bc4 {[%clk 0:00:05]}  Re8 {[%clk 0:00:07]} 37. Kd3 {[%clk 0:00:05]}  Ng4 {[%clk 0:00:07]} 38. e4 {[%clk 0:00:05]}  Nf2+ {[%clk 0:00:07]} 39. Kc2 {[%clk 0:00:04]}  Nxe4 {[%clk 0:00:07]} 40. Rf7+ {[%clk 0:00:04]}  Kg8 {[%clk 0:00:07]} 41. Re7+ {[%clk 0:00:04]}  Kf8 {[%clk 0:00:08]} 42. Rf7+ {[%clk 0:00:05]}  Kg8 {[%clk 0:00:08]} 43. Re7+ {[%clk 0:00:05]}  Kf8 {[%clk 0:00:09]} 44. Rxe8+ {[%clk 0:00:06]}  Kxe8 {[%clk 0:00:10]} 45. Kb3 {[%clk 0:00:06]}  Nd2+ {[%clk 0:00:07]} 46. Kxb4 {[%clk 0:00:06]}  Ke7 {[%clk 0:00:06]} 47. Bd3 {[%clk 0:00:06]}  Kd6 {[%clk 0:00:00]} 48. Kc3 {[%clk 0:00:06]} 1-0


[Site "https://www.chess.com"]

[Event "Titled Tuesday Blitz May 23 Late 2023"]
[White "Martinez Alcantara, Jose Eduardo"]
[Black "Liu, Casper"]
[WhiteFideId "3805662"]
[BlackFideId "1454153"]
[WhiteElo "2711"]
[BlackElo "2221"]
[Result "1-0"]
[Round "03"]
[TimeControl "180+2"]
[Date "2023.05.23"]
[WhiteClock "0:00:33"]
[BlackClock "0:00:14"]

1. e4 {[%clk 0:02:59]}  c5 {[%clk 0:02:57]} 2. Nf3 {[%clk 0:03:00]}  d6 {[%clk 0:02:57]} 3. Bb5+ {[%clk 0:03:00]}  Nd7 {[%clk 0:02:57]} 4. c3 {[%clk 0:03:01]}  a6 {[%clk 0:02:56]} 5. Ba4 {[%clk 0:03:00]}  b5 {[%clk 0:02:56]} 6. Bc2 {[%clk 0:02:59]}  e5 {[%clk 0:02:57]} 7. d4 {[%clk 0:03:00]}  Ngf6 {[%clk 0:02:57]} 8. O-O {[%clk 0:03:00]}  Be7 {[%clk 0:02:57]} 9. Qe2 {[%clk 0:03:00]}  O-O {[%clk 0:02:57]} 10. a4 {[%clk 0:02:59]}  b4 {[%clk 0:02:55]} 11. dxe5 {[%clk 0:02:56]}  dxe5 {[%clk 0:02:50]} 12. Nbd2 {[%clk 0:02:56]}  Qc7 {[%clk 0:02:49]} 13. a5 {[%clk 0:02:53]}  Bb7 {[%clk 0:02:45]} 14. Nc4 {[%clk 0:02:51]}  Rad8 {[%clk 0:02:43]} 15. Bg5 {[%clk 0:02:42]}  h6 {[%clk 0:02:41]} 16. Bxf6 {[%clk 0:02:40]}  Bxf6 {[%clk 0:02:42]} 17. Rfd1 {[%clk 0:02:39]}  Rfe8 {[%clk 0:02:42]} 18. Ba4 {[%clk 0:02:18]}  Re7 {[%clk 0:02:30]} 19. Rd6 {[%clk 0:02:04]}  Nf8 {[%clk 0:02:26]} 20. Rxd8 {[%clk 0:01:58]}  Qxd8 {[%clk 0:02:26]} 21. Rd1 {[%clk 0:01:55]}  Qc7 {[%clk 0:02:25]} 22. Nb6 {[%clk 0:01:55]}  Ne6 {[%clk 0:02:15]} 23. g3 {[%clk 0:01:55]}  Nd8 {[%clk 0:01:41]} 24. Nd2 {[%clk 0:01:44]}  Nc6 {[%clk 0:01:15]} 25. Nd5 {[%clk 0:01:36]}  Qxa5 {[%clk 0:01:16]} 26. Bxc6 {[%clk 0:01:37]}  Bxc6 {[%clk 0:01:16]} 27. Nc4 {[%clk 0:01:37]}  Qa2 {[%clk 0:01:12]} 28. Nxe7+ {[%clk 0:01:29]}  Bxe7 {[%clk 0:01:13]} 29. Nxe5 {[%clk 0:01:09]}  Ba4 {[%clk 0:01:12]} 30. Rc1 {[%clk 0:01:05]}  Bf6 {[%clk 0:01:03]} 31. f4 {[%clk 0:00:42]}  Bxe5 {[%clk 0:01:03]} 32. fxe5 {[%clk 0:00:43]}  Qe6 {[%clk 0:01:03]} 33. cxb4 {[%clk 0:00:43]}  cxb4 {[%clk 0:01:04]} 34. Qf2 {[%clk 0:00:38]}  Qxe5 {[%clk 0:00:36]} 35. Rc8+ {[%clk 0:00:37]}  Kh7 {[%clk 0:00:28]} 36. Qf5+ {[%clk 0:00:35]}  Qxf5 {[%clk 0:00:28]} 37. exf5 {[%clk 0:00:36]}  Bd7 {[%clk 0:00:20]} 38. Ra8 {[%clk 0:00:34]}  Bxf5 {[%clk 0:00:20]} 39. Rxa6 {[%clk 0:00:33]}  b3 {[%clk 0:00:20]} 40. Kf2 {[%clk 0:00:33]}  Be6 {[%clk 0:00:18]} 41. Ke3 {[%clk 0:00:33]}  h5 {[%clk 0:00:18]} 42. Kf4 {[%clk 0:00:34]}  Kg6 {[%clk 0:00:18]} 43. Ra5 {[%clk 0:00:35]}  Kh6 {[%clk 0:00:17]} 44. Ra8 {[%clk 0:00:33]}  g6 {[%clk 0:00:17]} 45. Ke5 {[%clk 0:00:33]}  Kg7 {[%clk 0:00:18]} 46. Ra7 {[%clk 0:00:34]}  Kh6 {[%clk 0:00:18]} 47. Kf6 {[%clk 0:00:34]}  Kh7 {[%clk 0:00:18]} 48. h4 {[%clk 0:00:32]}  Bc4 {[%clk 0:00:18]} 49. Rxf7+ {[%clk 0:00:13]}  Bxf7 {[%clk 0:00:18]} 50. Kxf7 {[%clk 0:00:14]}  Kh6 {[%clk 0:00:18]} 51. Kg8 {[%clk 0:00:15]}  g5 {[%clk 0:00:18]} 52. Kf7 {[%clk 0:00:16]}  gxh4 {[%clk 0:00:10]} 53. gxh4 {[%clk 0:00:16]}  Kh7 {[%clk 0:00:11]} 54. Kf6 {[%clk 0:00:17]}  Kh6 {[%clk 0:00:11]} 55. Kf5 {[%clk 0:00:18]}  Kg7 {[%clk 0:00:11]} 56. Kg5 {[%clk 0:00:19]}  Kh7 {[%clk 0:00:06]} 57. Kxh5 {[%clk 0:00:20]}  Kg7 {[%clk 0:00:07]} 58. Kg5 {[%clk 0:00:21]}  Kh7 {[%clk 0:00:07]} 59. Kf5 {[%clk 0:00:21]}  Kh6 {[%clk 0:00:08]} 60. Ke5 {[%clk 0:00:22]}  Kh5 {[%clk 0:00:08]} 61. Kd4 {[%clk 0:00:23]}  Kxh4 {[%clk 0:00:09]} 62. Kc4 {[%clk 0:00:24]}  Kg5 {[%clk 0:00:10]} 63. Kxb3 {[%clk 0:00:25]}  Kf6 {[%clk 0:00:11]} 64. Ka4 {[%clk 0:00:26]}  Ke7 {[%clk 0:00:12]} 65. b4 {[%clk 0:00:26]}  Kd7 {[%clk 0:00:12]} 66. Ka5 {[%clk 0:00:27]}  Kc7 {[%clk 0:00:11]} 67. Ka6 {[%clk 0:00:28]}  Kb8 {[%clk 0:00:11]} 68. Kb6 {[%clk 0:00:28]}  Ka8 {[%clk 0:00:12]} 69. Kc7 {[%clk 0:00:29]}  Ka7 {[%clk 0:00:12]} 70. b5 {[%clk 0:00:29]}  Ka8 {[%clk 0:00:12]} 71. Kb6 {[%clk 0:00:30]}  Kb8 {[%clk 0:00:13]} 72. Ka6 {[%clk 0:00:31]}  Ka8 {[%clk 0:00:14]} 73. b6 {[%clk 0:00:31]}  Kb8 {[%clk 0:00:14]} 74. b7 {[%clk 0:00:32]}  Kc7 {[%clk 0:00:14]} 75. Ka7 {[%clk 0:00:33]} 1-0


[Site "https://www.chess.com"]

[Event "Titled Tuesday Blitz May 23 Late 2023"]
[White "Deviprasath, Sharvesh"]
[Black "Dardha, Daniel"]
[WhiteFideId "30938228"]
[BlackFideId "240990"]
[WhiteElo "2168"]
[BlackElo "2581"]
[Result "0-1"]
[Round "03"]
[TimeControl "180+2"]
[Date "2023.05.23"]
[WhiteClock "0:00:01"]
[BlackClock "0:00:12"]

1. b3 {[%clk 0:03:00]}  g5 {[%clk 0:02:54]} 2. Bb2 {[%clk 0:03:01]}  Nf6 {[%clk 0:02:49]} 3. h3 {[%clk 0:03:01]}  d5 {[%clk 0:02:48]} 4. h4 {[%clk 0:03:00]}  g4 {[%clk 0:02:43]} 5. g3 {[%clk 0:02:58]}  Nc6 {[%clk 0:02:43]} 6. Bg2 {[%clk 0:02:58]}  e5 {[%clk 0:02:43]} 7. d3 {[%clk 0:02:56]}  h5 {[%clk 0:02:42]} 8. Nd2 {[%clk 0:02:55]}  Bc5 {[%clk 0:02:39]} 9. e3 {[%clk 0:02:55]}  d4 {[%clk 0:02:39]} 10. e4 {[%clk 0:02:54]}  Be7 {[%clk 0:02:36]} 11. a4 {[%clk 0:02:53]}  Be6 {[%clk 0:02:35]} 12. Nf1 {[%clk 0:02:32]}  a6 {[%clk 0:02:20]} 13. f3 {[%clk 0:02:30]}  Bb4+ {[%clk 0:02:13]} 14. Kf2 {[%clk 0:02:19]}  gxf3 {[%clk 0:02:09]} 15. Bxf3 {[%clk 0:02:19]}  Ng4+ {[%clk 0:02:07]} 16. Kg2 {[%clk 0:02:14]}  Rg8 {[%clk 0:02:06]} 17. Nh3 {[%clk 0:02:07]}  f6 {[%clk 0:01:57]} 18. Qe2 {[%clk 0:02:03]}  Qd7 {[%clk 0:01:56]} 19. Nf2 {[%clk 0:01:43]}  O-O-O {[%clk 0:01:49]} 20. Rd1 {[%clk 0:01:34]}  Ne7 {[%clk 0:01:47]} 21. Bxg4 {[%clk 0:01:29]}  hxg4 {[%clk 0:01:39]} 22. Bc1 {[%clk 0:01:27]}  Rdf8 {[%clk 0:01:28]} 23. Bd2 {[%clk 0:01:17]}  Bd6 {[%clk 0:01:25]} 24. h5 {[%clk 0:00:40]}  f5 {[%clk 0:01:20]} 25. exf5 {[%clk 0:00:38]}  Nxf5 {[%clk 0:01:14]} 26. Ne4 {[%clk 0:00:31]}  Bd5 {[%clk 0:01:13]} 27. Kg1 {[%clk 0:00:24]}  Be7 {[%clk 0:01:08]} 28. h6 {[%clk 0:00:19]}  Nd6 {[%clk 0:01:08]} 29. Nxd6+ {[%clk 0:00:17]}  Bxd6 {[%clk 0:01:04]} 30. Rh5 {[%clk 0:00:18]}  Bf3 {[%clk 0:01:02]} 31. Qe1 {[%clk 0:00:13]}  Qf7 {[%clk 0:01:02]} 32. Rh2 {[%clk 0:00:10]}  e4 {[%clk 0:00:51]} 33. dxe4 {[%clk 0:00:09]}  Bc5 {[%clk 0:00:51]} 34. Bb4 {[%clk 0:00:09]}  Bxb4 {[%clk 0:00:47]} 35. Rxd4 {[%clk 0:00:05]}  Bxe1 {[%clk 0:00:39]} 36. Rd3 {[%clk 0:00:02]}  Bxe4 {[%clk 0:00:12]} 37. Re3 {[%clk 0:00:01]} 0-1


[Site "https://www.chess.com"]

[Event "Titled Tuesday Blitz May 23 Late 2023"]
[White "Grigoriants, Sergey"]
[Black "Koc, Przemyslaw"]
[WhiteFideId "4130804"]
[BlackFideId "1109081"]
[WhiteElo "2502"]
[BlackElo "2161"]
[Result "1-0"]
[Round "03"]
[TimeControl "180+2"]
[Date "2023.05.23"]
[WhiteClock "0:00:44"]
[BlackClock "0:00:00"]

1. d4 {[%clk 0:03:00]}  d6 {[%clk 0:02:59]} 2. e4 {[%clk 0:03:00]}  Nf6 {[%clk 0:02:58]} 3. f3 {[%clk 0:03:00]}  e5 {[%clk 0:02:56]} 4. Ne2 {[%clk 0:02:55]}  Be7 {[%clk 0:02:55]} 5. Nbc3 {[%clk 0:02:55]}  O-O {[%clk 0:02:54]} 6. Be3 {[%clk 0:02:55]}  c6 {[%clk 0:02:53]} 7. a4 {[%clk 0:02:55]}  a5 {[%clk 0:02:52]} 8. Ng3 {[%clk 0:02:51]}  Re8 {[%clk 0:02:50]} 9. Be2 {[%clk 0:02:49]}  Bf8 {[%clk 0:02:48]} 10. O-O {[%clk 0:02:49]}  Nbd7 {[%clk 0:02:39]} 11. Qd2 {[%clk 0:02:46]}  Qc7 {[%clk 0:02:39]} 12. Rad1 {[%clk 0:02:45]}  d5 {[%clk 0:02:36]} 13. exd5 {[%clk 0:02:41]}  Nxd5 {[%clk 0:02:36]} 14. Nxd5 {[%clk 0:02:41]}  cxd5 {[%clk 0:02:36]} 15. Bb5 {[%clk 0:02:34]}  g6 {[%clk 0:02:24]} 16. dxe5 {[%clk 0:02:28]}  Qxe5 {[%clk 0:02:16]} 17. Bd4 {[%clk 0:02:27]}  Qc7 {[%clk 0:02:10]} 18. Kh1 {[%clk 0:02:23]}  Rd8 {[%clk 0:01:56]} 19. Nf5 {[%clk 0:02:13]}  Nc5 {[%clk 0:01:13]} 20. Nh6+ {[%clk 0:02:07]}  Bxh6 {[%clk 0:01:13]} 21. Qxh6 {[%clk 0:02:08]}  Ne6 {[%clk 0:01:06]} 22. Bf6 {[%clk 0:02:08]}  Bd7 {[%clk 0:00:45]} 23. f4 {[%clk 0:01:41]}  Bxb5 {[%clk 0:00:41]} 24. axb5 {[%clk 0:01:42]}  Qxc2 {[%clk 0:00:19]} 25. Rde1 {[%clk 0:00:54]}  Qd3 {[%clk 0:00:14]} 26. f5 {[%clk 0:00:49]}  gxf5 {[%clk 0:00:12]} 27. Rf3 {[%clk 0:00:48]}  Qc2 {[%clk 0:00:00]} 28. Rg3+ {[%clk 0:00:44]} 1-0


[Site "https://www.chess.com"]

[Event "Titled Tuesday Blitz May 23 Late 2023"]
[White "Moroni, Luca Jr"]
[Black "Toropov, Pavel"]
[WhiteFideId "865834"]
[BlackFideId "24129178"]
[WhiteElo "2569"]
[BlackElo "2182"]
[Result "1-0"]
[Round "03"]
[TimeControl "180+2"]
[Date "2023.05.23"]
[WhiteClock "0:00:44"]
[BlackClock "0:00:14"]

1. e4 {[%clk 0:03:00]}  e6 {[%clk 0:02:55]} 2. Qg4 {[%clk 0:03:01]}  Nf6 {[%clk 0:02:53]} 3. Qe2 {[%clk 0:02:59]}  c5 {[%clk 0:02:50]} 4. Nf3 {[%clk 0:02:54]}  Be7 {[%clk 0:02:49]} 5. d3 {[%clk 0:02:51]}  d5 {[%clk 0:02:49]} 6. Nbd2 {[%clk 0:02:50]}  Nc6 {[%clk 0:02:47]} 7. g3 {[%clk 0:02:50]}  O-O {[%clk 0:02:46]} 8. Bg2 {[%clk 0:02:50]}  b5 {[%clk 0:02:46]} 9. O-O {[%clk 0:02:48]}  Bb7 {[%clk 0:02:46]} 10. Re1 {[%clk 0:02:48]}  a5 {[%clk 0:02:44]} 11. e5 {[%clk 0:02:49]}  Nd7 {[%clk 0:02:43]} 12. Nf1 {[%clk 0:02:50]}  Qc7 {[%clk 0:02:44]} 13. Bf4 {[%clk 0:02:48]}  Rfc8 {[%clk 0:02:44]} 14. h4 {[%clk 0:02:47]}  Qd8 {[%clk 0:02:42]} 15. N1h2 {[%clk 0:02:46]}  Ra6 {[%clk 0:02:35]} 16. h5 {[%clk 0:02:46]}  h6 {[%clk 0:02:35]} 17. Ng4 {[%clk 0:02:46]}  b4 {[%clk 0:02:33]} 18. Nfh2 {[%clk 0:02:40]}  Bf8 {[%clk 0:02:26]} 19. Qd2 {[%clk 0:02:39]}  a4 {[%clk 0:02:23]} 20. Bxh6 {[%clk 0:02:27]}  gxh6 {[%clk 0:02:22]} 21. Nxh6+ {[%clk 0:02:28]}  Bxh6 {[%clk 0:02:20]} 22. Qxh6 {[%clk 0:02:29]}  Qf8 {[%clk 0:02:21]} 23. Qf4 {[%clk 0:02:28]}  Qg7 {[%clk 0:02:18]} 24. Ng4 {[%clk 0:02:27]}  Nd4 {[%clk 0:02:11]} 25. Rac1 {[%clk 0:02:24]}  a3 {[%clk 0:02:05]} 26. b3 {[%clk 0:02:19]}  Nf5 {[%clk 0:01:46]} 27. c4 {[%clk 0:02:08]}  bxc3 {[%clk 0:01:42]} 28. Rxc3 {[%clk 0:02:07]}  Rb6 {[%clk 0:01:42]} 29. Rcc1 {[%clk 0:02:02]}  Rb4 {[%clk 0:01:41]} 30. Be4 {[%clk 0:01:54]}  dxe4 {[%clk 0:01:36]} 31. dxe4 {[%clk 0:01:54]}  Nd4 {[%clk 0:01:14]} 32. Rc3 {[%clk 0:01:47]}  Nc6 {[%clk 0:01:07]} 33. Nf6+ {[%clk 0:01:43]}  Nxf6 {[%clk 0:01:06]} 34. exf6 {[%clk 0:01:44]}  Qf8 {[%clk 0:00:53]} 35. g4 {[%clk 0:01:15]}  Rd8 {[%clk 0:00:46]} 36. g5 {[%clk 0:01:14]}  Qd6 {[%clk 0:00:43]} 37. Qh4 {[%clk 0:01:09]}  Ne5 {[%clk 0:00:43]} 38. g6 {[%clk 0:01:05]}  Qd2 {[%clk 0:00:29]} 39. Ree3 {[%clk 0:00:56]}  Nf3+ {[%clk 0:00:23]} 40. Rxf3 {[%clk 0:00:55]}  Qd1+ {[%clk 0:00:23]} 41. Kh2 {[%clk 0:00:50]}  Bxe4 {[%clk 0:00:21]} 42. Qg5 {[%clk 0:00:46]}  fxg6 {[%clk 0:00:16]} 43. f7+ {[%clk 0:00:43]}  Kf8 {[%clk 0:00:15]} 44. Qh6+ {[%clk 0:00:42]}  Ke7 {[%clk 0:00:15]} 45. f8=Q+ {[%clk 0:00:42]}  Rxf8 {[%clk 0:00:14]} 46. Qxf8+ {[%clk 0:00:43]}  Kd7 {[%clk 0:00:14]} 47. Rf7+ {[%clk 0:00:44]}  Kc6 {[%clk 0:00:14]} 48. Qxc5# {[%clk 0:00:44]} 1-0


[Site "https://www.chess.com"]

[Event "Titled Tuesday Blitz May 23 Late 2023"]
[White "Mahdavi, Reza"]
[Black "Dragomirescu, Robin-Alexandru"]
[WhiteFideId "12595926"]
[BlackFideId "1213849"]
[WhiteElo "2352"]
[BlackElo "2356"]
[Result "0-1"]
[Round "03"]
[TimeControl "180+2"]
[Date "2023.05.23"]
[WhiteClock "0:00:03"]
[BlackClock "0:00:08"]

1. e4 {[%clk 0:02:48]}  c5 {[%clk 0:02:57]} 2. Nf3 {[%clk 0:02:49]}  Nc6 {[%clk 0:02:58]} 3. Bb5 {[%clk 0:02:48]}  g6 {[%clk 0:02:58]} 4. O-O {[%clk 0:02:48]}  Nf6 {[%clk 0:02:58]} 5. Re1 {[%clk 0:02:44]}  Bg7 {[%clk 0:02:58]} 6. e5 {[%clk 0:02:42]}  Nd5 {[%clk 0:02:57]} 7. Nc3 {[%clk 0:02:43]}  Nc7 {[%clk 0:02:58]} 8. Bxc6 {[%clk 0:02:44]}  dxc6 {[%clk 0:02:59]} 9. Ne4 {[%clk 0:02:44]}  b6 {[%clk 0:02:55]} 10. d3 {[%clk 0:02:40]}  O-O {[%clk 0:02:50]} 11. h3 {[%clk 0:02:37]}  Ne6 {[%clk 0:02:38]} 12. Be3 {[%clk 0:02:37]}  Nd4 {[%clk 0:02:38]} 13. Nxd4 {[%clk 0:02:37]}  cxd4 {[%clk 0:02:38]} 14. Bf4 {[%clk 0:02:38]}  c5 {[%clk 0:02:36]} 15. Qd2 {[%clk 0:02:36]}  Re8 {[%clk 0:02:22]} 16. Ng3 {[%clk 0:02:14]}  Qd5 {[%clk 0:02:16]} 17. Re2 {[%clk 0:02:08]}  Bb7 {[%clk 0:02:10]} 18. f3 {[%clk 0:02:09]}  c4 {[%clk 0:02:08]} 19. Kh2 {[%clk 0:01:42]}  Rac8 {[%clk 0:02:07]} 20. b3 {[%clk 0:01:35]}  cxd3 {[%clk 0:02:05]} 21. cxd3 {[%clk 0:01:36]}  Rc3 {[%clk 0:01:48]} 22. Ne4 {[%clk 0:01:30]}  Rc6 {[%clk 0:01:35]} 23. Nf2 {[%clk 0:01:25]}  Rec8 {[%clk 0:01:33]} 24. Rae1 {[%clk 0:01:25]}  a5 {[%clk 0:01:25]} 25. Ng4 {[%clk 0:01:21]}  h5 {[%clk 0:01:22]} 26. Nf2 {[%clk 0:01:21]}  Ba6 {[%clk 0:01:15]} 27. Bh6 {[%clk 0:01:18]}  Rc3 {[%clk 0:01:12]} 28. Bxg7 {[%clk 0:01:18]}  Kxg7 {[%clk 0:01:12]} 29. Re4 {[%clk 0:01:15]}  a4 {[%clk 0:01:00]} 30. Qf4 {[%clk 0:01:13]}  Rd8 {[%clk 0:00:51]} 31. e6 {[%clk 0:01:13]}  f6 {[%clk 0:00:50]} 32. Re5 {[%clk 0:00:57]}  Qd6 {[%clk 0:00:46]} 33. R5e4 {[%clk 0:00:36]}  Qxf4+ {[%clk 0:00:44]} 34. Rxf4 {[%clk 0:00:37]}  Bxd3 {[%clk 0:00:44]} 35. Rd1 {[%clk 0:00:36]}  axb3 {[%clk 0:00:42]} 36. axb3 {[%clk 0:00:35]}  g5 {[%clk 0:00:38]} 37. Nxd3 {[%clk 0:00:32]}  gxf4 {[%clk 0:00:37]} 38. Nxf4 {[%clk 0:00:33]}  d3 {[%clk 0:00:34]} 39. Kg3 {[%clk 0:00:26]}  d2 {[%clk 0:00:32]} 40. Ne2 {[%clk 0:00:27]}  Rxb3 {[%clk 0:00:30]} 41. Kf2 {[%clk 0:00:27]}  b5 {[%clk 0:00:24]} 42. Ng3 {[%clk 0:00:28]}  Kg6 {[%clk 0:00:23]} 43. Ke2 {[%clk 0:00:27]}  Rb2 {[%clk 0:00:22]} 44. Ne4 {[%clk 0:00:27]}  b4 {[%clk 0:00:21]} 45. g4 {[%clk 0:00:28]}  hxg4 {[%clk 0:00:21]} 46. hxg4 {[%clk 0:00:28]}  f5 {[%clk 0:00:20]} 47. Nc5 {[%clk 0:00:25]}  fxg4 {[%clk 0:00:18]} 48. fxg4 {[%clk 0:00:26]}  Rc2 {[%clk 0:00:18]} 49. Nd3 {[%clk 0:00:26]}  b3 {[%clk 0:00:18]} 50. Ne5+ {[%clk 0:00:05]}  Kf6 {[%clk 0:00:16]} 51. Nd3 {[%clk 0:00:06]}  b2 {[%clk 0:00:15]} 52. Rf1+ {[%clk 0:00:03]}  Kg5 {[%clk 0:00:13]} 53. Rf5+ {[%clk 0:00:03]}  Kxg4 {[%clk 0:00:12]} 54. Rb5 {[%clk 0:00:04]}  Rxd3 {[%clk 0:00:08]} 55. Kd1 {[%clk 0:00:03]} 0-1


[Site "https://www.chess.com"]

[Event "Titled Tuesday Blitz May 23 Late 2023"]
[White "Mekhitarian, Krikor Sevag"]
[Black "Jimenez Almeida, Luis David"]
[WhiteFideId "2107660"]
[BlackFideId "22242244"]
[WhiteElo "2604"]
[BlackElo "2245"]
[Result "1-0"]
[Round "03"]
[TimeControl "180+2"]
[Date "2023.05.23"]
[WhiteClock "0:00:07"]
[BlackClock "0:00:00"]

1. Nf3 {[%clk 0:03:00]}  g6 {[%clk 0:02:59]} 2. c4 {[%clk 0:03:01]}  Bg7 {[%clk 0:03:00]} 3. e4 {[%clk 0:03:01]}  c5 {[%clk 0:02:59]} 4. d4 {[%clk 0:03:01]}  Nc6 {[%clk 0:02:58]} 5. d5 {[%clk 0:02:39]}  Nd4 {[%clk 0:02:57]} 6. Nc3 {[%clk 0:02:36]}  d6 {[%clk 0:02:54]} 7. h3 {[%clk 0:02:30]}  Nh6 {[%clk 0:02:39]} 8. Be3 {[%clk 0:02:28]}  Nxf3+ {[%clk 0:02:32]} 9. Qxf3 {[%clk 0:02:29]}  O-O {[%clk 0:02:29]} 10. Bd3 {[%clk 0:02:28]}  f5 {[%clk 0:02:29]} 11. exf5 {[%clk 0:02:26]}  Nxf5 {[%clk 0:02:20]} 12. O-O {[%clk 0:02:13]}  Nd4 {[%clk 0:02:02]} 13. Qd1 {[%clk 0:02:02]}  e5 {[%clk 0:02:01]} 14. dxe6 {[%clk 0:02:01]}  Bxe6 {[%clk 0:02:00]} 15. Rc1 {[%clk 0:01:58]}  Qh4 {[%clk 0:01:52]} 16. Be4 {[%clk 0:01:37]}  Bxc4 {[%clk 0:01:34]} 17. Bxb7 {[%clk 0:01:19]}  Rab8 {[%clk 0:01:34]} 18. Bd5+ {[%clk 0:01:15]}  Bxd5 {[%clk 0:01:33]} 19. Nxd5 {[%clk 0:01:15]}  Rxb2 {[%clk 0:01:31]} 20. Rb1 {[%clk 0:00:56]}  Rxb1 {[%clk 0:01:06]} 21. Qxb1 {[%clk 0:00:56]}  Kh8 {[%clk 0:00:58]} 22. Qd3 {[%clk 0:00:39]}  Nf5 {[%clk 0:00:48]} 23. Bf4 {[%clk 0:00:30]}  Bd4 {[%clk 0:00:35]} 24. Qf3 {[%clk 0:00:24]}  Ne7 {[%clk 0:00:23]} 25. Be5+ {[%clk 0:00:11]}  Kg8 {[%clk 0:00:11]} 26. Nxe7+ {[%clk 0:00:11]}  Qxe7 {[%clk 0:00:10]} 27. Qd5+ {[%clk 0:00:11]}  Qf7 {[%clk 0:00:07]} 28. Qxd6 {[%clk 0:00:11]}  Bxe5 {[%clk 0:00:06]} 29. Qxe5 {[%clk 0:00:10]}  c4 {[%clk 0:00:06]} 30. Qd4 {[%clk 0:00:09]}  a5 {[%clk 0:00:06]} 31. a4 {[%clk 0:00:09]}  Rc8 {[%clk 0:00:05]} 32. Rc1 {[%clk 0:00:09]}  Qe6 {[%clk 0:00:04]} 33. g3 {[%clk 0:00:08]}  Rc7 {[%clk 0:00:00]} 34. Qd8+ {[%clk 0:00:07]} 1-0


[Site "https://www.chess.com"]

[Event "Titled Tuesday Blitz May 23 Late 2023"]
[White "Trifan, Andrei Ioan"]
[Black "Makridis, Dimitrios"]
[WhiteFideId "12967068"]
[BlackFideId "25864475"]
[WhiteElo "2208"]
[BlackElo "2277"]
[Result "0-1"]
[Round "03"]
[TimeControl "180+2"]
[Date "2023.05.23"]
[WhiteClock "0:00:11"]
[BlackClock "0:00:18"]

1. e4 {[%clk 0:02:59]}  c5 {[%clk 0:03:00]} 2. Nf3 {[%clk 0:02:58]}  a6 {[%clk 0:03:00]} 3. c4 {[%clk 0:02:56]}  Nc6 {[%clk 0:02:59]} 4. d4 {[%clk 0:02:53]}  cxd4 {[%clk 0:03:00]} 5. Nxd4 {[%clk 0:02:54]}  Nf6 {[%clk 0:02:58]} 6. Nc3 {[%clk 0:02:53]}  e5 {[%clk 0:02:55]} 7. Nf5 {[%clk 0:02:39]}  d6 {[%clk 0:02:48]} 8. Bg5 {[%clk 0:02:38]}  h6 {[%clk 0:02:33]} 9. Bxf6 {[%clk 0:02:30]}  Qxf6 {[%clk 0:02:33]} 10. Bd3 {[%clk 0:02:18]}  g6 {[%clk 0:02:30]} 11. Ne3 {[%clk 0:02:09]}  h5 {[%clk 0:02:23]} 12. O-O {[%clk 0:01:59]}  Bh6 {[%clk 0:02:22]} 13. Ned5 {[%clk 0:01:59]}  Qd8 {[%clk 0:02:21]} 14. f4 {[%clk 0:01:53]}  exf4 {[%clk 0:02:19]} 15. Nxf4 {[%clk 0:01:54]}  Ne5 {[%clk 0:02:16]} 16. Ncd5 {[%clk 0:01:47]}  Ng4 {[%clk 0:02:10]} 17. h3 {[%clk 0:01:35]}  Ne5 {[%clk 0:02:10]} 18. Be2 {[%clk 0:01:26]}  Be6 {[%clk 0:01:48]} 19. Qb3 {[%clk 0:01:02]}  Bxd5 {[%clk 0:01:46]} 20. Nxd5 {[%clk 0:01:01]}  O-O {[%clk 0:01:41]} 21. Rf2 {[%clk 0:00:49]}  Bg7 {[%clk 0:01:33]} 22. Raf1 {[%clk 0:00:48]}  Nd7 {[%clk 0:01:32]} 23. Kh1 {[%clk 0:00:30]}  Rb8 {[%clk 0:01:10]} 24. Qc2 {[%clk 0:00:30]}  Ne5 {[%clk 0:01:10]} 25. a4 {[%clk 0:00:26]}  Qh4 {[%clk 0:01:06]} 26. b3 {[%clk 0:00:23]}  Rbe8 {[%clk 0:01:04]} 27. Rf4 {[%clk 0:00:22]}  Qg5 {[%clk 0:00:58]} 28. Qd1 {[%clk 0:00:18]}  Nc6 {[%clk 0:00:49]} 29. Nc7 {[%clk 0:00:18]}  Be5 {[%clk 0:00:37]} 30. R4f3 {[%clk 0:00:18]}  Rd8 {[%clk 0:00:28]} 31. Nd5 {[%clk 0:00:18]}  Nd4 {[%clk 0:00:26]} 32. Rd3 {[%clk 0:00:19]}  Ne6 {[%clk 0:00:24]} 33. Bf3 {[%clk 0:00:18]}  Nf4 {[%clk 0:00:22]} 34. Qd2 {[%clk 0:00:19]}  f6 {[%clk 0:00:16]} 35. Nxf4 {[%clk 0:00:16]}  Bxf4 {[%clk 0:00:17]} 36. Qe2 {[%clk 0:00:14]}  Be5 {[%clk 0:00:18]} 37. Kg1 {[%clk 0:00:15]}  Qg3 {[%clk 0:00:17]} 38. Qe1 {[%clk 0:00:13]}  Qh2+ {[%clk 0:00:17]} 39. Kf2 {[%clk 0:00:11]}  Bg3+ {[%clk 0:00:18]} 0-1


[Site "https://www.chess.com"]